bitfinex/quotes_SOLUSD_20250817
["timestamp","ask_amount","ask_price","bid_price","bid_amount"]
[1755412192694,20.81761552,192.99,192.98,0.03]
[1755412192888,60.7464952,192.99,192.98,0.03]
[1755412193300,60.06652445,192.99,192.98,0.03]
[1755412194695,58.5698112,192.99,192.98,0.03]
[1755412195004,60.73652445,192.99,192.98,0.03]
[1755412196310,60.73652445,192.99,192.96,0.03]
[1755412196609,11.69515,192.98,192.96,0.03]
[1755412197010,20.951529,192.98,192.96,0.03]
[1755412197595,16.59819558,192.98,192.97,0.08]
[1755412197978,16.59819558,192.98,192.97,0.03]
[1755412201097,24.61679296,192.98,192.97,0.03]
[1755412201298,36.2525854,192.98,192.97,0.03]
[1755412201506,44.09282262,192.98,192.97,0.03]
[1755412202109,44.09282695,192.98,192.97,0.03]
[1755412203112,39.73724777,192.98,192.97,0.03]
[1755412203312,24.36259457,192.97,192.96,0.03]
[1755412203500,70.59536364,192.97,192.96,0.03]
[1755412205418,75.7775163,192.97,192.96,0.03]
[1755412210123,71.90592382,192.97,192.96,0.03]
[1755412210288,75.775561,192.97,192.96,0.03]
[1755412211119,75.775561,192.97,192.95,0.03]
[1755412211322,28.98232758,192.96,192.95,0.03]
[1755412211913,21.63319311,192.96,192.95,0.03]
[1755412212120,55.48719277,192.96,192.95,0.03]
[1755412212615,59.83990636,192.96,192.95,0.03]
[1755412212811,65.02232758,192.96,192.95,0.03]
[1755412218502,57.67319311,192.96,192.95,0.03]
[1755412218699,59.83990636,192.96,192.95,0.03]
[1755412219205,55.97026918,192.96,192.95,0.03]
[1755412219525,59.8387128,192.96,192.95,0.03]
[1755412219697,65.02113402,192.96,192.95,0.03]
[1755412223230,80.12734959,192.96,192.95,0.03]
[1755412226050,77.96063634,192.96,192.95,0.03]
[1755412226214,80.12734959,192.96,192.95,0.03]
[1755412228323,80.12899935,192.96,192.95,0.03]
[1755412228521,80.12903114,192.96,192.95,0.03]
[1755412231547,75.77631755,192.96,192.94,0.03]
[1755412231750,13.87515925,192.95,192.94,0.03]
[1755412231952,14.57515925,192.95,192.94,0.03]
[1755412232535,23.83153825,192.95,192.94,0.03]
[1755412232938,29.01422806,192.95,192.94,0.03]
[1755412233242,44.12044363,192.95,192.94,0.03]
[1755412233749,39.76658614,192.95,192.94,0.03]
[1755412237453,35.89646097,192.95,192.94,0.03]
[1755412237748,39.76435704,192.95,192.94,0.03]
[1755412237951,37.59764379,192.95,192.94,0.03]
[1755412238126,39.76435704,192.95,192.94,0.03]
[1755412239843,39.82435704,192.95,192.94,0.03]
[1755412240456,15.10621557,192.94,192.93,0.03]
[1755412240625,76.40460215,192.94,192.93,0.03]
[1755412241466,81.58756058,192.94,192.93,0.03]
[1755412242237,75.80462566,192.94,192.93,0.03]
[1755412242458,77.73756742,192.94,192.93,0.03]
[1755412245266,89.04171242,192.94,192.93,0.03]
[1755412246546,83.24087459,192.94,192.92,2.57701302]
[1755412246868,159.31065848,192.93,192.92,2.57701302]
[1755412247229,159.31065001,192.93,192.92,2.57701302]
[1755412247844,161.88766301,192.93,192.92,2.57701302]
[1755412249866,45.97058281,192.93,192.92,2.57701302]
[1755412250238,46.63058281,192.93,192.92,2.57701302]
[1755412254574,42.29119717,192.93,192.92,2.57701302]
[1755412255764,38.43401123,192.93,192.92,2.57701302]
[1755412255962,42.28732196,192.93,192.92,2.57701302]
[1755412256365,42.28725295,192.93,192.92,2.57701302]
[1755412256561,61.03486616,192.93,192.88,0.03]
[1755412256779,37.42309225,192.89,192.88,0.03]
[1755412256942,80.80079731,192.89,192.88,0.03]
[1755412257690,85.98509924,192.89,192.88,0.03]
[1755412258246,9.256379,192.74,192.73,2.70902268]
[1755412258451,9.256379,192.74,192.73,2.16671325]
[1755412258875,9.256379,192.74,192.73,2.21671325]
[1755412259677,36.04,192.79,192.73,7.40531907]
[1755412259678,9.256379,192.76,192.73,7.40531907]
[1755412259846,9.256379,192.76,192.75,2.16671325]
[1755412260174,9.256379,192.77,192.75,2.21671325]
[1755412260345,2.166713,192.78,192.76,28.21671325]
[1755412260543,9.256379,192.79,192.77,2.21671325]
[1755412260769,9.256379,192.79,192.78,2.21671325]
[1755412261548,9.256379,192.79,192.78,7.40397333]
[1755412261849,9.256379,192.82,192.78,7.40397333]
[1755412262052,9.256379,192.82,192.81,2.16671325]
[1755412262269,9.256379,192.82,192.81,2.21671325]
[1755412262655,9.256379,192.84,192.81,3.43995211]
[1755412262856,9.256379,192.85,192.83,3.38995211]
[1755412263069,9.256379,192.86,192.84,3.43995211]
[1755412263270,9.256379,192.88,192.85,3.43995211]
[1755412263490,9.256379,192.86,192.83,5.18591505]
[1755412263678,9.256379,192.86,192.85,3.38995211]
[1755412264048,9.256379,192.86,192.85,3.43995211]
[1755412264981,9.256379,192.86,192.83,5.18591505]
[1755412265154,9.256379,192.86,192.84,3.38995211]
[1755412265349,9.256379,192.85,192.84,3.38995211]
[1755412266558,9.256379,192.83,192.8,26.0]
[1755412266757,9.256379,192.83,192.82,3.38995211]
[1755412267848,9.256379,192.83,192.82,8.57613611]
[1755412269570,9.256379,192.83,192.82,3.38995211]
[1755412270001,9.256379,192.84,192.82,3.43995211]
[1755412270203,9.256379,192.83,192.82,3.38995211]
[1755412270573,9.256379,192.84,192.82,3.38995211]
[1755412270772,9.256379,192.84,192.83,0.05]
[1755412270974,9.256379,192.87,192.83,3.43995211]
[1755412271200,9.256379,192.89,192.86,3.38995211]
[1755412271513,9.256379,192.89,192.82,15.10621557]
[1755412271514,9.256379,192.85,192.83,5.18591505]
[1755412271872,9.256379,192.88,192.83,5.18591505]
[1755412272105,9.256379,192.85,192.84,0.05]
[1755412272605,9.256379,192.85,192.84,8.62559824]
[1755412272898,9.256379,192.85,192.82,5.18599886]
[1755412273197,9.256379,192.84,192.82,5.18599886]
[1755412273402,9.256379,192.84,192.83,3.43995211]
[1755412273581,9.256379,192.85,192.83,3.43995211]
[1755412273781,9.256379,192.84,192.83,0.05]
[1755412274193,9.256379,192.84,192.82,4.73599886]
[1755412274895,9.256379,192.84,192.81,5.18645298]
[1755412275098,9.256379,192.85,192.83,3.38995211]
[1755412275297,9.256379,192.84,192.81,5.18645298]
[1755412276204,9.256379,192.88,192.81,18.15258544]
[1755412276402,9.256379,192.85,192.81,18.15258544]
[1755412276598,9.256379,192.85,192.84,3.38995211]
[1755412277404,9.256379,192.85,192.84,8.57559824]
[1755412278511,9.256379,192.88,192.84,8.57559824]
[1755412278696,9.256379,192.89,192.87,3.38995211]
[1755412278896,9.256379,192.89,192.88,3.38995211]
[1755412279680,9.256379,192.89,192.88,8.57452282]
[1755412284313,9.256379,192.89,192.88,5.18457071]
[1755412284516,9.926379,192.89,192.88,8.57452282]
[1755412284807,9.926379,192.89,192.88,5.18457071]
[1755412284998,9.926379,192.89,192.88,8.57452282]
[1755412285981,9.926379,192.89,192.87,3.38995211]
[1755412286184,9.256379,192.87,192.84,5.18564613]
[1755412286478,0.06,192.92,192.83,3.38995211]
[1755412286479,9.256379,192.85,192.83,3.38995211]
[1755412286683,9.256379,192.85,192.82,3.38995211]
[1755412286901,9.926379,192.84,192.82,8.57599198]
[1755412287092,9.926379,192.84,192.83,3.38995211]
[1755412287093,9.256379,192.84,192.83,3.38995211]
[1755412287413,9.256379,192.84,192.82,8.57599198]
[1755412287714,0.67,192.83,192.82,8.57599198]
[1755412291193,0.67,192.83,192.82,8.60599198]
[1755412291698,9.926379,192.83,192.82,8.60599198]
[1755412293532,9.926379,192.83,192.82,0.03]
[1755412294029,9.926379,192.83,192.82,3.41995211]
[1755412295522,13.39562716,192.83,192.82,0.03]
[1755412298415,17.24746346,192.83,192.82,0.03]
[1755412298919,25.82333062,192.83,192.82,0.03]
[1755412300033,22.43337851,192.83,192.82,0.03]
[1755412300333,25.82275003,192.83,192.82,0.03]
[1755412300736,22.43279792,192.83,192.82,0.03]
[1755412301050,17.24688287,192.83,192.82,0.03]
[1755412303709,25.82275003,192.83,192.82,0.03]
[1755412304637,27.90159003,192.83,192.82,0.03]
[1755412305027,43.0078056,192.83,192.82,0.03]
[1755412305632,79.2078056,192.83,192.82,0.03]
[1755412307764,77.1289656,192.83,192.82,0.03]
[1755412309125,73.27770989,192.83,192.82,0.03]
[1755412309325,77.12400662,192.83,192.82,0.03]
[1755412310030,53.44192389,192.83,192.82,0.03]
[1755412311629,58.62783894,192.83,192.82,0.03]
[1755412312232,62.01779105,192.83,192.82,0.03]
[1755412312534,62.01304075,192.83,192.82,0.03]
[1755412312974,58.62308864,192.83,192.82,0.03]
[1755412313131,62.01304075,192.83,192.82,0.03]
[1755412313471,56.8271257,192.83,192.82,0.03]
[1755412318267,52.98557927,192.83,192.82,0.03]
[1755412318592,56.82655593,192.83,192.82,0.03]
[1755412318865,17.23660382,192.83,192.82,0.03]
[1755412319055,52.72660382,192.83,192.82,0.03]
[1755412319234,53.39660382,192.83,192.82,0.03]
[1755412320865,56.78655593,192.83,192.82,0.03]
[1755412321059,61.97247098,192.83,192.82,0.03]
[1755412321756,56.78655593,192.83,192.82,0.03]
[1755412321957,53.39660382,192.83,192.82,0.03]
[1755412322470,53.39807291,192.83,192.82,0.03]
[1755412322944,52.72807291,192.83,192.82,0.03]
[1755412323348,48.88562716,192.83,192.82,3.41995211]
[1755412323738,12.72562716,192.83,192.82,3.41995211]
[1755412324441,9.256379,192.83,192.82,3.41995211]
[1755412324837,9.256379,192.83,192.82,0.03]
[1755412325063,9.256379,192.83,192.82,3.41995211]
[1755412326351,9.256379,192.83,192.82,0.03]
[1755412326674,9.926379,192.83,192.82,0.03]
[1755412326882,13.38835974,192.83,192.82,0.03]
[1755412327184,49.54835974,192.83,192.82,0.03]
[1755412327342,49.60835974,192.83,192.82,0.03]
[1755412327544,53.45556442,192.83,192.82,0.03]
[1755412327742,58.64147947,192.83,192.82,0.03]
[1755412329371,58.64461498,192.83,192.82,0.03]
[1755412329553,62.03456709,192.83,192.82,0.03]
[1755412329948,58.64461498,192.83,192.82,0.03]
[1755412331260,62.97601029,192.83,192.82,0.03]
[1755412331468,66.3659624,192.83,192.82,0.03]
[1755412331986,66.37153016,192.83,192.82,0.03]
[1755412332773,81.47774573,192.83,192.82,0.03]
[1755412334364,78.06779362,192.83,192.82,0.03]
[1755412334565,81.45774573,192.83,192.82,0.03]
[1755412335193,26.82157805,192.83,192.82,0.03]
[1755412335357,57.775663,192.83,192.82,0.03]
[1755412335550,53.92289056,192.83,192.82,0.03]
[1755412335879,62.96340622,192.83,192.82,0.03]
[1755412336179,66.35335833,192.83,192.82,0.03]
[1755412337076,62.96340622,192.83,192.82,0.03]
[1755412337987,62.02196302,192.83,192.82,0.03]
[1755412338378,35.256379,192.81,192.8,0.03]
[1755412338551,78.71609586,192.81,192.8,0.03]
[1755412338952,79.37609586,192.81,192.8,0.03]
[1755412340565,83.71537256,192.81,192.8,0.03]
[1755412340966,92.29177765,192.81,192.8,0.03]
[1755412341182,87.95250095,192.81,192.8,0.03]
[1755412341482,92.29177765,192.81,192.8,0.03]
[1755412341777,88.90182554,192.81,192.8,0.03]
[1755412341984,92.29177765,192.81,192.8,0.03]
[1755412343276,56.15177765,192.81,192.8,0.03]
[1755412343589,87.93250095,192.81,192.8,0.03]
[1755412344684,87.93695653,192.81,192.8,0.03]
[1755412347591,84.54700442,192.81,192.8,0.03]
[1755412347772,87.93837042,192.81,192.8,0.03]
[1755412348687,99.65463388,192.81,192.8,0.03]
[1755412348994,103.04458599,192.81,192.8,0.03]
[1755412349188,103.04458599,192.81,192.79,0.03]
[1755412349386,20.63191744,192.8,192.79,0.03]
[1755412349786,25.81863943,192.8,192.79,0.03]
[1755412350592,25.81772424,192.8,192.79,0.03]
[1755412351285,22.42777213,192.8,192.79,0.03]
[1755412352202,26.76993561,192.8,192.79,0.03]
[1755412352892,25.81772424,192.8,192.79,0.03]
[1755412353095,40.92393981,192.8,192.79,0.03]
[1755412353293,35.256379,192.77,192.76,0.03]
[1755412353606,74.90149525,192.77,192.76,0.03]
[1755412353799,79.41924468,192.77,192.76,0.03]
[1755412354096,75.56149525,192.77,192.76,0.03]
[1755412354278,79.41924468,192.77,192.76,0.03]
[1755412354473,84.60677385,192.77,192.76,0.03]
[1755412358890,103.10294153,192.77,192.76,0.03]
[1755412359209,107.44311832,192.77,192.76,0.03]
[1755412359391,110.83307032,192.77,192.76,0.03]
[1755412361711,106.49679641,192.77,192.76,0.03]
[1755412362711,102.63904698,192.77,192.76,0.03]
[1755412362879,106.48971212,192.77,192.76,0.03]
[1755412363484,106.48971212,192.77,192.74,0.03]
[1755412363485,9.256379,192.75,192.74,0.03]
[1755412363689,56.16601538,192.75,192.74,0.03]
[1755412364096,62.01679838,192.75,192.74,0.03]
[1755412364505,81.45456806,192.75,192.74,0.03]
[1755412364697,86.6426355,192.75,192.74,0.03]
[1755412367300,82.31108139,192.75,192.74,1e-08]
[1755412367708,38.59211015,192.75,192.74,1e-08]
[1755412367910,78.23413925,192.75,192.74,1e-08]
[1755412368300,78.91413925,192.75,192.74,1e-08]
[1755412370017,78.23413925,192.75,192.74,1e-08]
[1755412370205,78.91413925,192.75,192.74,1e-08]
[1755412370600,82.30409136,192.75,192.74,1e-08]
[1755412371007,86.63162773,192.75,192.74,1e-08]
[1755412372021,86.62770236,192.75,192.74,1e-08]
[1755412372505,86.62801208,192.75,192.74,1e-08]
[1755412374011,86.62944556,192.75,192.74,1e-08]
[1755412374220,86.62944556,192.75,192.7,0.03]
[1755412374221,24.36259457,192.71,192.7,0.03]
[1755412374433,71.24226237,192.71,192.7,0.03]
[1755412374591,71.92226237,192.71,192.7,0.03]
[1755412375118,92.71396266,192.71,192.7,0.03]
[1755412375696,92.71396266,192.71,192.7,1e-08]
[1755412376922,97.04193673,192.71,192.7,1e-08]
[1755412377528,92.71396266,192.71,192.7,1e-08]
[1755412380620,92.79396266,192.71,192.7,1e-08]
[1755412380929,92.78748026,192.71,192.7,1e-08]
[1755412381311,92.78788183,192.71,192.7,1e-08]
[1755412383208,92.78556156,192.71,192.7,1e-08]
[1755412383931,60.84290248,192.71,192.7,1e-08]
[1755412384240,92.78556156,192.71,192.7,1e-08]
[1755412386161,97.10290248,192.71,192.7,1e-08]
[1755412386345,92.78556156,192.71,192.7,1e-08]
[1755412386844,56.52556156,192.71,192.7,1e-08]
[1755412387144,92.80556156,192.71,192.7,1e-08]
[1755412388046,88.73560945,192.71,192.7,1e-08]
[1755412388407,92.80556156,192.71,192.7,1e-08]
[1755412388728,77.20209756,192.71,192.7,1e-08]
[1755412388903,82.39362456,192.71,192.7,1e-08]
[1755412389098,78.55588419,192.71,192.7,1e-08]
[1755412389320,82.39339963,192.71,192.7,1e-08]
[1755412389727,82.39366173,192.71,192.7,1e-08]
[1755412390830,76.54213473,192.71,192.7,1e-08]
[1755412391549,73.15218262,192.71,192.7,1e-08]
[1755412391739,76.54213473,192.71,192.7,1e-08]
[1755412393145,73.15218262,192.71,192.7,1e-08]
[1755412393335,76.54213473,192.71,192.7,1e-08]
[1755412393536,76.60213473,192.71,192.7,1e-08]
[1755412395339,76.60542949,192.71,192.7,1e-08]
[1755412398056,83.04397881,192.71,192.7,1e-08]
[1755412398352,83.04710875,192.71,192.7,1e-08]
[1755412398738,109.04730362,192.71,192.7,1e-08]
[1755412399358,90.55113594,192.71,192.7,1e-08]
[1755412399651,93.94108805,192.71,192.7,1e-08]
[1755412400236,94.64108805,192.71,192.7,1e-08]
[1755412400629,83.74730362,192.71,192.7,1e-08]
[1755412400962,90.75459654,192.71,192.7,1e-08]
[1755412401180,86.43725562,192.71,192.7,1e-08]
[1755412401743,90.75459654,192.71,192.7,1e-08]
[1755412402252,91.45459654,192.71,192.7,1e-08]
[1755412403729,88.06464443,192.71,192.7,1e-08]
[1755412403937,91.45459654,192.71,192.7,1e-08]
[1755412404942,26.0,192.68,192.65,3.38995211]
[1755412405149,43.56706331,192.67,192.65,3.38995211]
[1755412405344,9.256379,192.65,192.64,0.03]
[1755412405661,48.98176315,192.65,192.64,0.03]
[1755412406163,48.98176315,192.65,192.64,3.41995211]
[1755412407139,45.516379,192.65,192.64,3.41995211]
[1755412409163,48.98465221,192.65,192.64,3.41995211]
[1755412411863,48.98465221,192.65,192.64,0.03]
[1755412412260,52.83938321,192.65,192.64,0.03]
[1755412412441,52.83948596,192.65,192.64,3.41995211]
[1755412412642,48.98465221,192.65,192.64,3.41995211]
[1755412413266,52.84036172,192.65,192.64,0.03]
[1755412413466,52.84036172,192.65,192.64,3.41995211]
[1755412413681,48.98465221,192.65,192.64,3.41995211]
[1755412413864,48.98465221,192.65,192.64,0.03]
[1755412414455,62.12205631,192.65,192.64,0.03]
[1755412414662,52.84134376,192.65,192.64,0.03]
[1755412415370,53.54134376,192.65,192.64,0.03]
[1755412416575,49.68465221,192.65,192.64,0.03]
[1755412416779,53.54279887,192.65,192.64,0.03]
[1755412418488,52.84279887,192.65,192.64,0.03]
[1755412419479,53.54279887,192.65,192.64,0.03]
[1755412419678,52.84279887,192.65,192.64,0.03]
[1755412420776,52.84279887,192.65,192.64,3.42838268]
[1755412421149,52.84279887,192.65,192.64,0.03]
[1755412421357,52.84279887,192.65,192.64,3.42838268]
[1755412421958,53.54279887,192.65,192.64,0.03]
[1755412422659,53.54581905,192.65,192.64,0.03]
[1755412425583,49.68465221,192.65,192.64,0.03]
[1755412425768,52.84837571,192.65,192.64,0.03]
[1755412426080,53.55837571,192.65,192.64,0.03]
[1755412426290,53.55845312,192.65,192.64,0.03]
[1755412426578,53.55847271,192.65,192.64,0.03]
[1755412427271,58.74923315,192.65,192.64,0.03]
[1755412428273,84.74923315,192.65,192.64,0.03]
[1755412431775,9.256379,192.64,192.63,0.11450657]
[1755412432095,21.64546689,192.64,192.63,0.11450657]
[1755412432765,26.83649679,192.64,192.63,0.11450657]
[1755412433265,30.23487947,192.64,192.63,0.11450657]
[1755412433677,40.99410086,192.64,192.63,0.11450657]
[1755412434068,44.39248386,192.64,192.63,0.11450657]
[1755412434385,40.99410086,192.64,192.63,0.11450657]
[1755412434775,18.62568211,192.64,192.63,0.11450657]
[1755412434992,26.83368933,192.64,192.63,0.11450657]
[1755412435376,26.83291829,192.64,192.63,0.11450657]
[1755412437500,30.23130097,192.64,192.63,0.11450657]
[1755412437809,26.83291829,192.64,192.63,0.11450657]
[1755412437983,22.4874493,192.64,192.63,0.11450657]
[1755412438179,30.22702534,192.64,192.63,0.11450657]
[1755412438777,29.00422206,192.64,192.63,0.11450657]
[1755412442795,25.14245487,192.64,192.63,0.11450657]
[1755412442996,22.96687547,192.64,192.63,0.11450657]
[1755412443196,25.14245487,192.64,192.63,0.11450657]
[1755412443399,28.9988561,192.64,192.63,0.11450657]
[1755412444294,26.8232767,192.64,192.63,0.11450657]
[1755412444619,28.9988561,192.64,192.63,0.11450657]
[1755412445278,26.8232767,192.64,192.63,0.11450657]
[1755412445691,28.9988561,192.64,192.63,0.11450657]
[1755412446311,28.99770929,192.64,192.63,0.11450657]
[1755412447814,26.82212989,192.64,192.63,0.11450657]
[1755412448021,28.99770929,192.64,192.63,0.11450657]
[1755412450422,31.20328829,192.64,192.63,0.11450657]
[1755412452511,31.19703804,192.64,192.63,0.11450657]
[1755412453019,26.81587964,192.64,192.63,0.11450657]
[1755412454404,28.99145904,192.64,192.63,0.11450657]
[1755412455213,26.81587964,192.64,192.63,0.11450657]
[1755412455604,28.99145904,192.64,192.63,0.11450657]
[1755412455997,31.19703804,192.64,192.63,0.11450657]
[1755412456398,28.99145904,192.64,192.63,0.11450657]
[1755412457210,26.81587964,192.64,192.63,0.11450657]
[1755412457406,28.99145904,192.64,192.63,0.11450657]
[1755412457718,31.19703904,192.64,192.63,0.11450657]
[1755412458602,14.44767838,192.63,192.62,0.03]
[1755412458918,58.69495576,192.63,192.62,0.03]
[1755412459212,63.02852558,192.63,192.62,0.03]
[1755412459915,65.20410498,192.63,192.62,0.03]
[1755412461397,61.35510081,192.63,192.62,0.03]
[1755412461598,65.20752171,192.63,192.62,0.03]
[1755412464210,60.87395189,192.63,192.62,0.03]
[1755412464698,62.95519594,192.63,192.62,0.03]
[1755412464897,60.77961654,192.63,192.62,0.03]
[1755412465117,62.95519594,192.63,192.62,0.03]
[1755412467107,60.77961654,192.63,192.62,0.03]
[1755412467304,62.95519594,192.63,192.62,0.03]
[1755412470509,59.10253399,192.63,192.62,0.03]
[1755412470710,62.95641066,192.63,192.62,0.03]
[1755412473636,62.95641066,192.63,192.61,0.03]
[1755412473637,26.0,192.6,192.59,0.03]
[1755412473817,69.52214988,192.6,192.59,0.03]
[1755412474636,78.77852888,192.6,192.59,0.03]
[1755412475140,79.46852888,192.6,192.59,0.03]
[1755412475816,84.66063687,192.6,192.59,0.03]
[1755412476252,88.99673042,192.6,192.59,0.03]
[1755412477822,88.30673042,192.6,192.59,0.03]
[1755412478422,88.99673042,192.6,192.59,0.03]
[1755412479638,85.14285375,192.6,192.59,0.03]
[1755412479815,88.99955006,192.6,192.59,0.03]
[1755412481333,84.66345651,192.6,192.59,0.03]
[1755412482738,84.66322944,192.6,192.59,0.03]
[1755412484142,86.83880884,192.6,192.59,0.03]
[1755412486838,89.01438884,192.6,192.59,0.03]
[1755412487146,9.256379,192.59,192.58,0.03]
[1755412487441,19.46670085,192.59,192.58,0.03]
[1755412487945,17.29112145,192.59,192.58,0.03]
[1755412488124,40.34812534,192.59,192.58,0.03]
[1755412488332,45.54050292,192.59,192.58,0.03]
[1755412488528,50.73532892,192.59,192.58,0.03]
[1755412488730,9.256379,192.51,192.48,5.19526888]
[1755412488925,45.436379,192.51,192.49,2.1755794]
[1755412489115,45.436379,192.51,192.48,5.19526888]
[1755412489320,45.436379,192.51,192.5,2.1755794]
[1755412489645,48.90550927,192.51,192.5,2.1755794]
[1755412490245,12.72550927,192.51,192.5,2.1755794]
[1755412490421,48.90550927,192.51,192.5,2.1755794]
[1755412492145,45.436379,192.51,192.5,2.1755794]
[1755412493450,9.256379,192.5,192.45,12.9901072]
[1755412493764,9.256379,192.5,192.49,2.1755794]
[1755412494121,9.256379,192.5,192.45,12.9901072]
[1755412494323,9.256379,192.5,192.49,2.1755794]
[1755412494525,9.256379,192.49,192.47,5.19544986]
[1755412494830,45.456379,192.49,192.45,5.19615484]
[1755412495365,45.456379,192.49,192.48,2.1755794]
[1755412495752,9.256379,192.49,192.48,2.1755794]
[1755412496049,9.256379,192.47,192.39,12.99440818]
[1755412496362,9.256379,192.45,192.38,5.19804553]
[1755412496544,9.256379,192.45,192.44,2.1755794]
[1755412497074,9.256379,192.44,192.39,15.10621557]
[1755412497234,9.256379,192.44,192.43,2.1755794]
[1755412497553,9.256379,192.44,192.43,7.4022743]
[1755412497755,9.256379,192.45,192.43,7.4022743]
[1755412497948,9.256379,192.45,192.44,2.1755794]
[1755412498541,9.256379,192.45,192.44,7.37200425]
[1755412499149,9.256379,192.46,192.44,5.19642485]
[1755412499360,9.256379,192.45,192.44,5.19642485]
[1755412499663,36.24,192.47,192.43,0.03]
[1755412499664,9.256379,192.44,192.43,0.03]
[1755412500449,9.256379,192.44,192.43,2.2055794]
[1755412500652,9.256379,192.48,192.43,2.2055794]
[1755412500861,36.26,192.47,192.43,0.03]
[1755412501866,9.256379,192.48,192.43,0.03]
[1755412502235,36.3,192.49,192.43,0.03]
[1755412502236,9.256379,192.46,192.43,0.03]
[1755412502458,9.256379,192.46,192.45,2.1755794]
[1755412502657,0.71,192.46,192.45,2.1755794]
[1755412502858,9.966379,192.46,192.45,2.1755794]
[1755412503461,46.286379,192.46,192.45,2.1755794]
[1755412503642,46.286379,192.46,192.43,0.03]
[1755412503853,9.966379,192.45,192.44,2.1755794]
[1755412504253,9.256379,192.44,192.43,0.03]
[1755412504451,46.286379,192.44,192.43,0.03]
[1755412506171,46.286379,192.44,192.34,6.5226441]
[1755412506172,9.256379,192.35,192.34,6.5226441]
[1755412506458,45.596379,192.35,192.33,2.1755794]
[1755412506645,9.256379,192.38,192.34,2.2355794]
[1755412506845,9.256379,192.42,192.37,2.1755794]
[1755412507076,9.256379,192.44,192.41,2.1755794]
[1755412507255,6.23148695,192.47,192.43,7.3722743]
[1755412507577,6.23148695,192.47,192.46,2.1755794]
[1755412508154,6.23148695,192.47,192.46,2.2355794]
[1755412508355,6.23148695,192.47,192.46,2.1755794]
[1755412508568,15.48786595,192.47,192.46,2.1755794]
[1755412508785,16.19786595,192.47,192.46,3.40298684]
[1755412508976,6.23148695,192.47,192.46,3.40298684]
[1755412509254,6.23148695,192.47,192.46,8.59887169]
[1755412510050,15.48786595,192.47,192.46,8.59887169]
[1755412510251,6.23148695,192.47,192.46,8.59887169]
[1755412510451,9.256379,192.56,192.46,66.15778624]
[1755412510651,9.256379,192.55,192.48,18.50920241]
[1755412510852,9.256379,192.53,192.49,0.06]
[1755412511052,9.256379,192.55,192.49,0.06]
[1755412511352,9.256379,192.53,192.49,5.25507506]
[1755412511552,9.256379,192.53,192.5,0.06]
[1755412511768,9.966379,192.56,192.52,3.40298684]
[1755412511977,9.256379,192.53,192.49,18.18276273]
[1755412512175,9.256379,192.53,192.49,18.24276273]
[1755412513177,9.256379,192.53,192.52,3.40298684]
[1755412513814,9.256379,192.53,192.52,8.59725237]
[1755412514378,9.256379,192.53,192.52,5.19426553]
[1755412514676,9.256379,192.53,192.52,3.40298684]
[1755412515655,9.256379,192.53,192.52,8.59725237]
[1755412516764,9.256379,192.53,192.49,5.25507506]
[1755412516952,9.256379,192.53,192.52,3.40298684]
[1755412517352,9.916379,192.53,192.52,3.40298684]
[1755412518397,9.256379,192.53,192.52,8.59725237]
[1755412518885,9.916379,192.53,192.52,8.59725237]
[1755412519272,9.256379,192.53,192.52,8.59725237]
[1755412520367,9.916379,192.53,192.52,8.59725237]
[1755412521984,9.916379,192.53,192.52,3.40298684]
[1755412522559,9.256379,192.52,192.5,5.1945512]
[1755412522784,0.66,192.51,192.5,3.40298684]
[1755412522984,9.916379,192.51,192.5,3.40298684]
[1755412523359,0.66,192.51,192.5,3.40298684]
[1755412523561,9.916379,192.51,192.5,3.40298684]
[1755412525291,9.916379,192.51,192.5,8.59779203]
[1755412525961,9.256379,192.51,192.5,8.59779203]
[1755412526388,45.736379,192.52,192.5,8.59779203]
[1755412526682,45.736379,192.52,192.51,3.40298684]
[1755412527064,46.396379,192.52,192.51,3.40298684]
[1755412527460,9.256379,192.48,192.47,5.1956149]
[1755412527682,9.256379,192.48,192.47,8.59860174]